bitfinex/quotes_BTCUSD_20230831
["timestamp","ask_amount","ask_price","bid_price","bid_amount"]
[1693461452117,3.50598134,27286.0,27285.0,0.001]
[1693461452315,3.36828134,27286.0,27285.0,0.001]
[1693461463651,3.43344134,27286.0,27285.0,0.001]
[1693461463831,3.43284134,27286.0,27285.0,0.001]
[1693461464375,3.43278134,27286.0,27285.0,0.001]
[1693461464817,4.28592045,27286.0,27285.0,0.001]
[1693461465026,0.02,27282.0,27280.0,0.00099209]
[1693461465288,3.01876868,27281.0,27280.0,0.00099209]
[1693461465461,0.0756,27280.0,27276.0,0.059933]
[1693461465690,0.0756,27277.0,27276.0,0.06092005]
[1693461465898,1.84597653,27277.0,27276.0,0.06092005]
[1693461466095,2.43281112,27277.0,27274.0,0.04]
[1693461466305,0.0756,27275.0,27274.0,0.04]
[1693461466542,0.808872,27275.0,27274.0,0.186779]
[1693461468737,0.818872,27275.0,27274.0,0.186779]
[1693461470962,1.85148173,27275.0,27274.0,0.186779]
[1693461472412,1.11820973,27275.0,27274.0,0.186779]
[1693461472537,0.0856,27275.0,27274.0,0.186779]
[1693461475833,0.11785309,27275.0,27274.0,0.186779]
[1693461477114,0.38830065,27275.0,27274.0,0.186779]
[1693461477320,1.85484465,27275.0,27273.0,0.04]
[1693461477592,0.33037279,27274.0,27273.0,0.04]
[1693461478615,0.33037279,27274.0,27273.0,0.186786]
[1693461478813,0.33237279,27274.0,27273.0,0.186786]
[1693461480590,0.33437279,27274.0,27273.0,0.187786]
[1693461482984,0.0796,27274.0,27273.0,0.187786]
[1693461487337,0.004,27274.0,27273.0,0.187786]
[1693461489668,0.004,27274.0,27273.0,0.167786]
[1693461490685,0.03624726,27274.0,27273.0,0.167786]
[1693461501524,0.03624726,27274.0,27273.0,0.147786]
[1693461502512,0.03624726,27274.0,27273.0,1.614438]
[1693461504061,0.03624726,27274.0,27273.0,2.347764]
[1693461510362,0.03624726,27274.0,27273.0,2.43566489]
[1693461525562,0.03624726,27274.0,27273.0,2.821744]
[1693461526013,0.03624726,27274.0,27273.0,2.95359534]
[1693461526587,0.004,27274.0,27273.0,2.95359534]
[1693461527015,0.03968162,27274.0,27273.0,2.95359534]
[1693461527376,0.03968162,27274.0,27273.0,3.02919534]
[1693461528331,0.03968162,27274.0,27273.0,3.37485174]
[1693461528531,0.03968162,27274.0,27273.0,3.02923353]
[1693461528714,0.03968162,27274.0,27273.0,3.37484663]
[1693461529521,0.03968162,27274.0,27273.0,3.46278471]
[1693461529932,0.03968162,27274.0,27273.0,3.02923026]
[1693461530474,0.03968162,27274.0,27273.0,3.46278319]
[1693461530888,0.03968162,27274.0,27273.0,3.46277754]
[1693461531096,0.03968162,27274.0,27273.0,3.37484738]
[1693461537694,0.03968162,27274.0,27273.0,3.35484738]
[1693461540218,0.03968162,27274.0,27273.0,3.44273716]
[1693461540646,0.03968162,27274.0,27273.0,3.35484738]
[1693461541360,0.03968162,27274.0,27273.0,3.44273966]
[1693461541744,0.03968162,27274.0,27273.0,3.35484738]
[1693461542368,0.03968162,27274.0,27273.0,3.44274073]
[1693461542550,0.03968162,27274.0,27273.0,3.35484738]
[1693461543147,0.03968162,27274.0,27273.0,0.51386511]
[1693461543751,0.03968162,27274.0,27273.0,0.147786]
[1693461545165,0.03768162,27274.0,27273.0,0.147786]
[1693461545364,0.03968162,27274.0,27273.0,0.146786]
[1693461545562,0.04568162,27274.0,27273.0,0.146786]
[1693461545805,0.04168162,27274.0,27273.0,0.146786]
[1693461546012,0.04568162,27274.0,27273.0,0.146786]
[1693461546228,0.03968162,27274.0,27273.0,0.146786]
[1693461546393,0.04568162,27274.0,27273.0,0.146786]
[1693461549790,0.04568162,27274.0,27273.0,0.326786]
[1693461554159,0.04568162,27274.0,27273.0,1.060112]
[1693461558229,0.04568162,27274.0,27273.0,1.793438]
[1693461577920,0.04568162,27274.0,27273.0,0.326786]
[1693461586027,0.04568162,27274.0,27273.0,1.060112]
[1693461586503,0.04568162,27274.0,27273.0,1.793438]
[1693461598106,0.04568162,27274.0,27273.0,1.613438]
[1693461600823,0.04568162,27274.0,27273.0,1.793438]
[1693461600951,0.04568162,27274.0,27273.0,2.526764]
[1693461602745,0.04568162,27274.0,27273.0,2.96844311]
[1693461602955,0.04568162,27274.0,27273.0,3.28844311]
[1693461603161,0.04568162,27274.0,27273.0,3.85385389]
[1693461603575,0.03968162,27274.0,27273.0,3.85385389]
[1693461603989,0.04168162,27274.0,27273.0,3.85485389]
[1693461604157,0.04568162,27274.0,27273.0,3.85485389]
[1693461604369,0.03968162,27274.0,27273.0,3.85385389]
[1693461604573,0.04368162,27274.0,27273.0,3.85585389]
[1693461605471,0.04368162,27274.0,27273.0,3.83585389]
[1693461605680,0.04368162,27274.0,27273.0,3.85585389]
[1693461607063,0.04368162,27274.0,27273.0,3.83585389]
[1693461607863,0.04368162,27274.0,27273.0,3.92377079]
[1693461608959,0.04368162,27274.0,27273.0,3.49021135]
[1693461610545,0.04368162,27274.0,27273.0,3.51983064]
[1693461612606,0.04368162,27274.0,27273.0,3.3879793]
[1693461616602,0.008,27274.0,27273.0,3.3879793]
[1693461625384,0.008,27274.0,27273.0,3.51983064]
[1693461626057,0.008,27274.0,27273.0,3.3879793]
[1693461626257,0.008,27274.0,27273.0,3.51983064]
[1693461627793,0.008,27274.0,27273.0,3.3879793]
[1693461630252,0.008,27274.0,27273.0,3.51983064]
[1693461630514,0.008,27274.0,27273.0,3.95337405]
[1693461630649,0.008,27274.0,27273.0,3.86545715]
[1693461630855,0.008,27274.0,27273.0,4.92247268]
[1693461631121,0.008,27274.0,27273.0,5.09827447]
[1693461632813,0.008,27274.0,27273.0,4.92247268]
[1693461633017,0.008,27274.0,27273.0,3.83583786]
[1693461633216,0.008,27274.0,27273.0,3.76023786]
[1693461633830,0.04196041,27274.0,27273.0,3.76023786]
[1693461635745,0.04196041,27274.0,27273.0,3.84808298]
[1693461636199,0.04196041,27274.0,27273.0,3.28268948]
[1693461638771,0.04196041,27274.0,27273.0,3.41454082]
[1693461641708,0.04196041,27274.0,27273.0,3.84808654]
[1693461641904,0.04196041,27274.0,27273.0,3.11476054]
[1693461642744,0.04196041,27274.0,27273.0,3.02691417]
[1693461643522,0.04196041,27274.0,27273.0,3.76024017]
[1693461645908,0.04196041,27274.0,27273.0,3.02691417]
[1693461648347,0.04196041,27274.0,27273.0,2.66083506]
[1693461648576,0.04196041,27274.0,27273.0,2.18335216]
[1693461652016,0.04196041,27274.0,27273.0,1.45002616]
[1693461652218,0.04196041,27274.0,27273.0,2.18335216]
[1693461656147,0.03334347,27274.0,27273.0,2.18335216]
[1693461656287,0.03334347,27274.0,27273.0,2.91667816]
[1693461657945,0.03334347,27274.0,27273.0,2.828764]
[1693461660725,0.03334347,27274.0,27273.0,2.095438]
[1693461661437,0.03334347,27274.0,27273.0,2.828764]
[1693461690885,0.03334347,27274.0,27273.0,2.91667924]
[1693461692989,0.03334347,27274.0,27273.0,2.94540942]
[1693461699049,0.03334347,27274.0,27273.0,2.91667924]
[1693461709938,0.77000883,27274.0,27273.0,2.18335324]
[1693461710142,2.4342982,27274.0,27273.0,0.182]
[1693461710383,2.93320269,27274.0,27273.0,0.182]
[1693461710716,3.06521935,27274.0,27273.0,0.182]
[1693461710874,3.06121935,27274.0,27273.0,0.18]
[1693461711070,3.05721935,27274.0,27273.0,0.18]
[1693461711284,3.01322547,27274.0,27273.0,0.18]
[1693461712487,3.04422547,27274.0,27273.0,0.18]
[1693461712700,3.05022547,27274.0,27273.0,0.181]
[1693461712902,3.01922547,27274.0,27273.0,0.181]
[1693461713244,3.04422547,27274.0,27273.0,0.18]
[1693461713424,2.95620269,27274.0,27273.0,0.18]
[1693461713557,2.96920269,27274.0,27273.0,0.18]
[1693461713757,2.98920269,27274.0,27273.0,0.18]
[1693461714959,2.96920269,27274.0,27273.0,0.18]
[1693461719399,0.1399334,27270.0,27269.0,0.146807]
[1693461719609,0.1399334,27270.0,27267.0,0.00098675]
[1693461719610,0.0999334,27268.0,27267.0,0.00098675]
[1693461719821,0.0999334,27268.0,27264.0,0.021008]
[1693461719822,0.02,27265.0,27264.0,0.021008]
[1693461720028,0.24198341,27265.0,27264.0,0.021008]
[1693461720229,0.0956,27265.0,27264.0,0.021008]
[1693461722183,0.1016,27265.0,27264.0,0.021008]
[1693461722831,0.1056,27265.0,27264.0,0.021008]
[1693461723468,0.01,27265.0,27264.0,1.488144]
[1693461724205,0.006,27265.0,27264.0,1.488144]
[1693461725564,0.017,27265.0,27264.0,1.488144]
[1693461725720,0.036,27265.0,27264.0,1.488144]
[1693461725880,0.019,27265.0,27264.0,1.488144]
[1693461726085,0.004,27265.0,27264.0,1.488144]
[1693461726509,0.01,27265.0,27264.0,1.488144]
[1693461727393,0.01,27265.0,27264.0,1.57605924]
[1693461729811,0.0352681,27265.0,27264.0,1.57605924]
[1693461732167,0.0352681,27265.0,27264.0,3.1533464]
[1693461732577,0.0352681,27265.0,27264.0,0.10869029]
[1693461732578,0.01,27265.0,27264.0,0.10869029]
[1693461732780,0.004,27265.0,27264.0,0.10869029]
[1693461732983,0.02523712,27265.0,27264.0,0.10869029]
[1693461733160,0.03123712,27265.0,27264.0,0.10969029]
[1693461733398,0.01,27265.0,27264.0,0.84325829]
[1693461733604,0.0956,27267.0,27264.0,0.84225829]
[1693461733805,0.002,27265.0,27264.0,0.84525829]
[1693461734013,0.004,27265.0,27264.0,0.11169029]
[1693461735153,0.002,27265.0,27264.0,0.10969029]
[1693461735492,0.002,27265.0,27264.0,0.24156315]
[1693461736498,0.004,27265.0,27264.0,0.67725998]
[1693461737396,0.00736103,27267.0,27264.0,0.58957769]
[1693461737670,0.30556268,27267.0,27265.0,0.08767607]
[1693461737843,0.29820165,27267.0,27265.0,0.08767607]
[1693461738654,0.31720165,27267.0,27264.0,0.24155693]
[1693461739008,0.24275963,27266.0,27265.0,0.08767607]
[1693461739182,1.05187363,27266.0,27264.0,0.021008]
[1693461739381,0.0756,27265.0,27264.0,0.021008]
[1693461739581,0.809141,27265.0,27264.0,0.021008]
[1693461740635,1.07110369,27265.0,27264.0,0.021008]
[1693461741725,1.07110369,27265.0,27264.0,0.10869967]
[1693461742528,1.07310369,27265.0,27264.0,0.11269967]
[1693461743111,1.07510369,27265.0,27264.0,0.11569967]
[1693461744564,1.07510369,27265.0,27264.0,0.028008]
[1693461744765,1.10032653,27265.0,27264.0,0.11570078]
[1693461746376,1.10032653,27265.0,27264.0,0.24723996]
[1693461746948,1.83386753,27265.0,27264.0,0.24723996]
[1693461747745,1.83386753,27265.0,27264.0,0.68096777]
[1693461748292,1.83386753,27265.0,27264.0,0.59327485]
[1693461751329,1.83386753,27265.0,27264.0,0.76866042]
[1693461753493,1.83386753,27265.0,27264.0,0.63712124]
[1693461754266,1.83386753,27265.0,27264.0,0.8563532]
[1693461754479,1.83386753,27265.0,27264.0,0.63712124]
[1693461755296,1.83386753,27265.0,27264.0,0.8563532]
[1693461758368,1.83386753,27265.0,27264.0,0.63712124]
[1693461759271,1.83386753,27265.0,27264.0,0.65712124]
[1693461759473,2.30544584,27265.0,27264.0,0.63712124]
[1693461759679,2.30544584,27265.0,27264.0,0.46173567]
[1693461759883,2.30544584,27265.0,27264.0,0.11590572]
[1693461760896,2.30544584,27265.0,27264.0,0.11290572]
[1693461760897,2.30344584,27265.0,27264.0,0.11290572]
[1693461761097,2.33144584,27265.0,27264.0,0.10890572]
[1693461761293,2.69752495,27265.0,27264.0,0.10890572]
[1693461761451,2.72952495,27265.0,27264.0,0.10890572]
[1693461761855,2.69752495,27265.0,27264.0,0.10890572]
[1693461762121,2.72952495,27265.0,27264.0,0.10890572]
[1693461762463,2.69952495,27265.0,27264.0,0.10890572]
[1693461762664,2.72952495,27265.0,27264.0,0.10890572]
[1693461762871,2.96548693,27265.0,27264.0,0.10890572]
[1693461763402,2.96548693,27265.0,27264.0,0.021008]
[1693461764403,2.72952495,27265.0,27264.0,0.021008]
[1693461764603,3.00801074,27265.0,27264.0,0.021008]
[1693461765428,2.72952495,27265.0,27264.0,0.021008]
[1693461765844,2.98003352,27265.0,27264.0,0.021008]
[1693461766351,2.72952495,27265.0,27264.0,0.021008]
[1693461766690,2.96022322,27265.0,27264.0,0.021008]
[1693461772177,0.82076384,27265.0,27264.0,0.021008]
[1693461772378,1.55430484,27265.0,27264.0,0.021008]
[1693461778683,1.54818472,27265.0,27264.0,0.021008]
[1693461785332,0.81464372,27265.0,27264.0,0.021008]
[1693461787582,1.54818472,27265.0,27264.0,0.021008]
[1693461803403,2.66449815,27265.0,27264.0,0.021008]
[1693461806183,2.66449815,27265.0,27264.0,0.041008]
[1693461810872,2.82288184,27265.0,27264.0,0.041008]
[1693461818363,2.51570941,27265.0,27264.0,0.041008]
[1693461818568,2.35732572,27265.0,27264.0,0.041008]
[1693461818787,2.51575082,27265.0,27264.0,0.041008]
[1693461819534,2.35732572,27265.0,27264.0,0.041008]
[1693461820272,2.58203954,27265.0,27264.0,0.041008]
[1693461820644,2.74044683,27265.0,27264.0,0.041008]
[1693461848191,2.51573301,27265.0,27264.0,0.041008]
[1693461848407,2.88181212,27265.0,27264.0,0.041008]
[1693461849196,3.1475626,27265.0,27264.0,0.041008]
[1693461849613,2.88181212,27265.0,27264.0,0.041008]
[1693461853015,3.13505086,27265.0,27264.0,0.041008]
[1693461854173,3.2230607,27265.0,27264.0,0.041008]
[1693461855878,2.03543075,27265.0,27264.0,0.041008]
[1693461864070,0.57446887,27265.0,27264.0,0.041008]
[1693461870042,0.41606158,27265.0,27264.0,0.041008]
[1693461872127,0.57430749,27265.0,27264.0,0.041008]
[1693461872536,0.41606158,27265.0,27264.0,0.041008]
[1693461872744,0.57434074,27265.0,27264.0,0.041008]
[1693461874252,1.30788174,27265.0,27264.0,0.041008]
[1693461879238,0.57434074,27265.0,27264.0,0.041008]
[1693461882305,1.30788174,27265.0,27264.0,0.041008]
[1693461887219,1.24031628,27265.0,27264.0,0.041008]
[1693461887419,1.97385728,27265.0,27264.0,0.041008]
[1693461911418,1.24031628,27265.0,27264.0,0.041008]
[1693461911819,1.08203712,27265.0,27264.0,0.041008]
[1693461914956,0.34849612,27265.0,27264.0,0.041008]
[1693461915916,0.09525738,27265.0,27264.0,0.041008]
[1693461916325,1.10781353,27265.0,27264.0,0.041008]
[1693461921588,0.37427253,27265.0,27264.0,0.041008]
[1693461924673,0.29927253,27265.0,27264.0,0.041008]
[1693461924880,0.32297384,27265.0,27264.0,0.041008]
[1693461928956,0.32297384,27265.0,27264.0,0.774576]
[1693461930386,0.32297384,27265.0,27264.0,0.041008]
[1693461934897,1.05651484,27265.0,27264.0,0.041008]
[1693461942875,1.21464505,27265.0,27264.0,0.041008]
[1693461949837,1.94818605,27265.0,27264.0,0.041008]
[1693461959193,2.56632174,27265.0,27264.0,0.041008]
[1693461959520,2.82533078,27265.0,27264.0,0.041008]
[1693461959735,2.73732094,27265.0,27264.0,0.041008]
[1693461973684,2.00377994,27265.0,27264.0,0.041008]
[1693461974586,2.84439101,27265.0,27264.0,0.041008]
[1693461974766,3.0880191,27265.0,27264.0,0.041008]
[1693461992188,2.92988889,27265.0,27264.0,0.041008]
[1693461992394,3.08821117,27265.0,27264.0,0.041008]
[1693461997136,0.44590906,27265.0,27264.0,0.041008]
[1693461998289,0.20228097,27265.0,27264.0,0.041008]
[1693461998498,0.20228097,27265.0,27264.0,1.508144]
[1693461998716,0.20228097,27265.0,27264.0,0.774576]
[1693461999956,0.20228097,27265.0,27264.0,0.041008]
[1693462002621,0.93582197,27265.0,27264.0,0.041008]
[1693462009069,1.01142197,27265.0,27264.0,0.041008]
[1693462017242,0.93582197,27265.0,27264.0,0.041008]
[1693462020897,1.97410078,27265.0,27264.0,0.041008]
[1693462039299,2.70764178,27265.0,27264.0,0.041008]
[1693462047394,2.78324178,27265.0,27264.0,0.041008]
[1693462067465,2.77520724,27265.0,27264.0,0.041008]
[1693462067638,2.78287387,27265.0,27264.0,0.041008]
[1693462074280,2.04933287,27265.0,27264.0,0.041008]
[1693462093818,1.97373287,27265.0,27264.0,0.041008]
[1693462097025,1.24019187,27265.0,27264.0,0.041008]
[1693462097366,0.50665087,27265.0,27264.0,0.041008]
[1693462097770,0.68665087,27265.0,27264.0,0.041008]
[1693462098424,0.68665087,27265.0,27264.0,0.774576]
[1693462101517,0.38191306,27265.0,27264.0,2.241712]
[1693462101726,0.22359078,27265.0,27264.0,2.241712]
[1693462102280,0.21136794,27265.0,27264.0,2.241712]
[1693462102495,0.26336794,27265.0,27264.0,2.247712]
[1693462102705,0.26336794,27265.0,27264.0,2.323312]
[1693462102915,0.23636794,27265.0,27264.0,2.40841204]
[1693462103120,0.18,27265.0,27264.0,2.40541204]
[1693462103348,0.22688983,27265.0,27264.0,2.40641204]
[1693462103750,0.22688983,27265.0,27264.0,2.53856211]
[1693462103967,0.22688983,27265.0,27264.0,2.83856211]
[1693462104166,0.192,27265.0,27264.0,2.70641204]
[1693462104582,0.192,27265.0,27264.0,2.70841204]
[1693462104583,0.206,27265.0,27264.0,2.70841204]
[1693462104790,0.192,27265.0,27264.0,2.70641204]
[1693462105192,0.21688983,27265.0,27264.0,2.71841204]
[1693462105392,0.22888983,27265.0,27264.0,2.71941204]
[1693462106020,0.21688983,27265.0,27264.0,2.71841204]
[1693462106346,0.21888983,27265.0,27264.0,2.73341204]
[1693462107060,0.21888983,27265.0,27264.0,2.645312]
[1693462107666,0.184,27265.0,27264.0,2.645312]
[1693462110064,0.21888983,27265.0,27264.0,2.645312]
[1693462117328,0.21888983,27265.0,27264.0,2.569712]
[1693462118005,0.21888983,27265.0,27264.0,2.645312]
[1693462118209,0.184,27265.0,27264.0,2.645312]
[1693462122737,0.184,27265.0,27264.0,3.74495911]
[1693462125351,0.184,27265.0,27264.0,3.76495911]
[1693462128693,0.21694128,27265.0,27264.0,3.76495911]
[1693462130909,0.21694128,27265.0,27264.0,3.85305915]
[1693462131545,0.184,27265.0,27264.0,3.85305915]
[1693462132708,0.184,27265.0,27264.0,4.9103847]
[1693462133906,0.184,27265.0,27264.0,3.85305915]
[1693462137714,0.21510323,27265.0,27264.0,3.85305915]
[1693462138658,0.184,27265.0,27264.0,3.85305915]
[1693462139145,0.184,27265.0,27264.0,5.04253379]
[1693462139348,0.184,27265.0,27264.0,5.47620082]
[1693462139558,0.184,27265.0,27264.0,5.04253379]
[1693462140207,0.184,27265.0,27264.0,3.85305915]
[1693462140562,0.21514422,27265.0,27264.0,3.98520922]
[1693462141366,0.21514422,27265.0,27264.0,5.4762026]
[1693462141595,0.184,27265.0,27264.0,5.4762026]
[1693462142202,0.184,27265.0,27264.0,5.38810256]
[1693462143732,0.184,27265.0,27264.0,5.31250256]
[1693462143954,0.184,27265.0,27264.0,4.25517673]
[1693462144118,0.184,27265.0,27264.0,3.77732016]
[1693462144733,0.21515778,27265.0,27264.0,3.77732016]
[1693462146302,0.21515778,27265.0,27264.0,4.34315355]
[1693462146502,0.21515778,27265.0,27264.0,3.90947023]
[1693462146741,0.21515778,27265.0,27264.0,4.3431538]
[1693462146938,0.21515778,27265.0,27264.0,3.90947023]
[1693462147162,0.21515778,27265.0,27264.0,4.25519286]
[1693462151578,0.21515778,27265.0,27264.0,3.2435834]
[1693462151802,0.21515778,27265.0,27264.0,2.67774965]
[1693462153213,0.21515778,27265.0,27264.0,1.102576]
[1693462154176,0.21515778,27265.0,27264.0,1.836144]
[1693462154672,0.21515778,27265.0,27264.0,2.65774965]
[1693462165140,0.21515778,27265.0,27264.0,2.569712]
[1693462183146,0.21515778,27265.0,27264.0,2.65774965]
[1693462196659,0.21515778,27265.0,27264.0,2.78989972]
[1693462197729,0.21515778,27265.0,27264.0,3.22360482]
[1693462199526,0.21515778,27265.0,27264.0,2.78989972]
[1693462199728,0.21515778,27265.0,27264.0,3.22360558]
[1693462201602,0.21515778,27265.0,27264.0,3.13556793]
[1693462201926,0.21515778,27265.0,27264.0,3.22367153]
[1693462232754,0.22801983,27265.0,27264.0,3.22367153]
[1693462267778,0.22801983,27265.0,27264.0,3.57724704]
[1693462268367,0.184,27265.0,27264.0,3.57724704]
[1693462269485,0.184,27265.0,27264.0,4.67866353]
[1693462269662,0.184,27265.0,27264.0,3.62129706]
[1693462269867,0.182,27265.0,27264.0,3.60629706]
[1693462270473,0.182,27265.0,27264.0,4.6636385]
[1693462270674,0.182,27265.0,27264.0,3.60629706]
[1693462271055,0.18,27265.0,27264.0,3.59329706]
[1693462271256,0.181,27265.0,27264.0,3.60429706]
[1693462271480,0.183,27265.0,27264.0,3.62829706]
[1693462271677,0.182,27265.0,27264.0,3.61729706]
[1693462272130,0.184,27265.0,27264.0,3.64129706]
[1693462273719,0.184,27265.0,27264.0,3.56569706]
[1693462274752,0.184,27265.0,27264.0,3.69772429]
[1693462276687,0.184,27265.0,27264.0,3.77332429]
[1693462276890,0.184,27265.0,27264.0,3.64129706]
[1693462277093,0.184,27265.0,27264.0,4.78267299]
[1693462277873,0.182,27265.0,27264.0,4.75867299]
[1693462278283,0.185,27265.0,27264.0,4.96664541]
[1693462278606,0.183,27265.0,27264.0,4.97264441]
[1693462279344,0.186,27265.0,27264.0,5.00364441]
[1693462281450,0.186,27265.0,27264.0,4.78339429]
[1693462290932,0.186,27265.0,27264.0,3.72606839]
[1693462291132,0.186,27265.0,27264.0,4.78337499]
[1693462296827,0.186,27265.0,27264.0,4.85897499]
[1693462297708,0.186,27265.0,27264.0,4.87897499]
[1693462298577,0.186,27265.0,27264.0,5.09922511]
[1693462299852,0.186,27265.0,27264.0,4.92325269]
[1693462301647,0.186,27265.0,27264.0,4.90325269]
[1693462302142,0.186,27265.0,27264.0,4.78327735]
[1693462307876,0.186,27265.0,27264.0,5.00352747]
[1693462311377,0.186,27265.0,27264.0,4.82765269]
[1693462315291,0.186,27265.0,27264.0,4.60740257]
[1693462330587,0.006,27265.0,27264.0,4.60740257]
[1693462332967,0.186,27265.0,27264.0,4.60740257]
[1693462346635,0.186,27265.0,27264.0,4.60733247]
[1693462386376,0.186,27265.0,27264.0,4.60728954]
[1693462430639,0.186,27265.0,27264.0,4.87131341]
[1693462435039,0.186,27265.0,27264.0,4.89131341]
[1693462437841,0.186,27265.0,27264.0,4.62728954]
[1693462440531,0.186,27265.0,27264.0,4.89131341]
[1693462454773,0.186,27265.0,27264.0,5.59131341]
[1693462467545,0.186,27265.0,27264.0,4.89131341]
[1693462469328,0.186,27265.0,27264.0,5.59131341]
[1693462477608,0.186,27265.0,27264.0,4.89131341]
[1693462486964,0.186,27265.0,27264.0,4.95353341]
[1693462487141,0.186,27265.0,27264.0,4.95365341]
[1693462487318,0.186,27265.0,27264.0,4.95383341]
[1693462487515,0.186,27265.0,27264.0,4.95371341]
[1693462487704,0.186,27265.0,27264.0,4.95359341]
[1693462487904,0.186,27265.0,27264.0,4.89131341]
[1693462489121,0.186,27265.0,27264.0,5.59131341]
[1693462490402,0.186,27265.0,27264.0,5.65467341]
[1693462490553,0.186,27265.0,27264.0,5.65389341]
[1693462490767,0.186,27265.0,27264.0,5.65311341]
[1693462490965,0.186,27265.0,27264.0,5.65299341]
[1693462491203,0.186,27265.0,27264.0,5.59131341]
[1693462492306,0.186,27265.0,27264.0,5.65569341]
[1693462492507,0.186,27265.0,27264.0,5.39316954]
[1693462492711,0.186,27265.0,27264.0,5.39376954]
[1693462492893,0.183,27265.0,27264.0,5.36210954]
[1693462493086,0.183,27265.0,27264.0,5.36168954]
[1693462493250,0.185,27265.0,27264.0,5.39766954]
[1693462493452,0.185,27265.0,27264.0,5.40006954]
[1693462493654,0.185,27265.0,27264.0,5.40036954]
[1693462494059,0.185,27265.0,27264.0,5.40024954]
[1693462494237,0.182,27265.0,27264.0,5.36818954]
[1693462494558,0.1515,27267.0,27266.0,0.04]
[1693462494769,0.1515,27267.0,27266.0,4.16924911]
[1693462494967,0.1515,27267.0,27266.0,5.96014854]
[1693462495726,0.1515,27267.0,27266.0,5.97114854]
[1693462496317,0.1515,27267.0,27266.0,5.98214854]
[1693462502575,0.1515,27267.0,27266.0,6.00214854]
[1693462503082,0.1515,27267.0,27266.0,6.03884332]
[1693462503281,0.1995,27270.0,27268.0,0.06]
[1693462503497,0.1995,27270.0,27269.0,4.26088297]
[1693462503697,0.0599334,27273.0,27269.0,4.26088297]
[1693462503698,0.0599334,27273.0,27269.0,4.99451873]
[1693462503855,0.0599334,27273.0,27270.0,0.46362136]
[1693462504063,0.0599334,27273.0,27271.0,3.29959511]
[1693462504064,0.04093784,27272.0,27271.0,3.29959511]
[1693462504281,0.04093784,27272.0,27271.0,3.59959511]
[1693462504874,0.04093784,27272.0,27271.0,3.74636911]
[1693462505477,0.04093784,27272.0,27271.0,4.47974811]
[1693462506620,0.01,27273.0,27271.0,4.47974811]
[1693462506830,0.4269334,27274.0,27271.0,4.47974811]
[1693462507019,0.011,27272.0,27271.0,4.48074811]
[1693462507711,0.011,27272.0,27271.0,4.48174811]
[1693462508116,0.011,27272.0,27271.0,4.55734811]
[1693462508317,0.011,27272.0,27271.0,4.70536947]
[1693462509164,0.011,27272.0,27271.0,4.70436947]
[1693462509369,0.1643,27274.0,27271.0,4.70336947]
[1693462509576,0.1643,27274.0,27273.0,0.0756]
[1693462509770,0.1993,27275.0,27273.0,4.10830911]
[1693462510102,0.0599334,27276.0,27275.0,2.933088]
[1693462510662,0.0599334,27277.0,27275.0,2.933088]
[1693462511104,0.01,27276.0,27275.0,2.936088]
[1693462511511,0.0599334,27277.0,27275.0,2.933088]
[1693462511866,0.0699334,27277.0,27275.0,2.936088]
[1693462512507,0.0699334,27277.0,27275.0,2.939088]
[1693462513047,0.0599334,27277.0,27275.0,2.936088]
[1693462513399,0.01,27276.0,27275.0,2.939088]
[1693462513600,0.0599334,27277.0,27275.0,2.936088]
[1693462513803,0.0599334,27277.0,27275.0,2.939088]
[1693462514010,0.0699334,27277.0,27275.0,2.939088]
[1693462514216,0.0599334,27277.0,27275.0,2.936088]
[1693462514619,0.01,27276.0,27275.0,2.939088]
[1693462514819,0.0599334,27277.0,27275.0,2.936088]
[1693462515315,0.0599334,27277.0,27275.0,2.933088]
[1693462515670,0.0599334,27277.0,27275.0,2.935088]
[1693462516091,0.0599334,27277.0,27275.0,2.933088]
[1693462516647,0.0599334,27277.0,27275.0,2.936088]
[1693462516822,0.0699334,27277.0,27275.0,2.939088]
[1693462518555,0.0599334,27277.0,27275.0,2.936088]
[1693462518786,0.0599334,27277.0,27275.0,3.30216711]
[1693462518921,0.0599334,27277.0,27275.0,3.29916711]
[1693462519158,0.0599334,27277.0,27275.0,3.30216711]
[1693462519520,0.0599334,27277.0,27275.0,3.29916711]
[1693462519920,0.0689334,27277.0,27275.0,3.30416711]
[1693462520338,0.9968,27281.0,27276.0,0.78167911]
[1693462520339,0.0599334,27281.0,27276.0,0.78167911]
[1693462520545,0.0599334,27281.0,27280.0,0.808737]
[1693462520741,0.0599334,27281.0,27280.0,2.275011]
[1693462521031,0.0599334,27282.0,27280.0,2.275011]
[1693462521229,0.0599334,27281.0,27280.0,2.275011]
[1693462521970,0.0599334,27281.0,27280.0,2.406928]
[1693462522493,0.0599334,27281.0,27280.0,2.409928]
[1693462522697,0.0599334,27281.0,27280.0,2.334328]
[1693462522873,0.0599334,27282.0,27280.0,2.334328]
[1693462523077,0.0599334,27281.0,27280.0,2.334328]
[1693462523297,0.0599334,27281.0,27280.0,2.337328]
[1693462523660,0.0599334,27282.0,27280.0,2.337328]
[1693462523864,0.0599334,27282.0,27280.0,2.412928]
[1693462524498,0.0599334,27282.0,27280.0,2.406928]
[1693462524940,0.0410827,27281.0,27280.0,2.412928]
[1693462525671,0.0410827,27281.0,27280.0,2.409928]
[1693462526078,0.0599334,27283.0,27280.0,2.412928]
[1693462526548,0.0599334,27283.0,27280.0,2.409928]
[1693462527127,0.0599334,27283.0,27280.0,2.412928]
[1693462527352,0.0599334,27283.0,27280.0,2.409928]
[1693462527556,0.0599334,27283.0,27280.0,2.406928]
[1693462527684,0.0599334,27283.0,27280.0,2.334328]
[1693462527900,0.0599334,27283.0,27280.0,2.337328]
[1693462529337,0.0599334,27283.0,27280.0,2.70340711]
[1693462529560,0.2164334,27284.0,27282.0,0.0756]
[1693462529766,0.2164334,27284.0,27283.0,2.199171]
[1693462529767,0.0599334,27284.0,27283.0,2.199171]
[1693462530660,0.02,27286.0,27283.0,2.199171]
[1693462530661,0.0599334,27285.0,27283.0,2.199171]
[1693462531201,0.0599334,27285.0,27283.0,2.201171]
[1693462531849,0.0599334,27285.0,27283.0,2.204171]
[1693462532056,0.0599334,27285.0,27283.0,2.202171]
[1693462532463,0.0599334,27285.0,27283.0,2.205171]
[1693462533984,0.2399334,27285.0,27283.0,2.205171]